[Event "Titled Tuesday Blitz January 31 Late 2023"]
[White "Boder, Jan"]
[Black "Vlassov, Nikolai"]
[WhiteFideId "16243226"]
[BlackFideId "4103360"]
[WhiteElo "2294"]
[BlackElo "2283"]
[Result "0-1"]
[Round "03"]
[TimeControl "180+2"]
[Date "2023.01.31"]
[WhiteClock "0:00:04"]
[BlackClock "0:00:09"]

1. c4 {[%clk 0:02:59]}  e5 {[%clk 0:02:59]} 2. g3 {[%clk 0:03:00]}  h5 {[%clk 0:02:58]} 3. Bg2 {[%clk 0:03:01]}  h4 {[%clk 0:02:58]} 4. Nc3 {[%clk 0:03:00]}  Bc5 {[%clk 0:02:54]} 5. e3 {[%clk 0:02:53]}  d6 {[%clk 0:02:52]} 6. d4 {[%clk 0:02:52]}  Bb6 {[%clk 0:02:49]} 7. dxe5 {[%clk 0:02:39]}  dxe5 {[%clk 0:02:49]} 8. Qxd8+ {[%clk 0:02:39]}  Kxd8 {[%clk 0:02:50]} 9. Nf3 {[%clk 0:02:37]}  h3 {[%clk 0:02:48]} 10. Bf1 {[%clk 0:02:35]}  f6 {[%clk 0:02:47]} 11. Nd5 {[%clk 0:02:34]}  Bc5 {[%clk 0:02:38]} 12. b4 {[%clk 0:02:33]}  Bf8 {[%clk 0:02:37]} 13. a3 {[%clk 0:02:19]}  Be6 {[%clk 0:02:26]} 14. Bb2 {[%clk 0:02:19]}  c6 {[%clk 0:02:25]} 15. Nc3 {[%clk 0:02:17]}  Nd7 {[%clk 0:02:24]} 16. O-O-O {[%clk 0:02:18]}  Kc7 {[%clk 0:02:24]} 17. Be2 {[%clk 0:02:14]}  Nh6 {[%clk 0:02:23]} 18. Nh4 {[%clk 0:02:08]}  a5 {[%clk 0:02:06]} 19. Ng6 {[%clk 0:01:56]}  axb4 {[%clk 0:02:05]} 20. Nxf8 {[%clk 0:01:41]}  Rhxf8 {[%clk 0:01:59]} 21. axb4 {[%clk 0:01:41]}  Ng4 {[%clk 0:01:56]} 22. Ne4 {[%clk 0:01:26]}  Nb6 {[%clk 0:01:40]} 23. Nc5 {[%clk 0:01:17]}  Bc8 {[%clk 0:01:39]} 24. Bxg4 {[%clk 0:01:04]}  Bxg4 {[%clk 0:01:39]} 25. f3 {[%clk 0:01:05]}  Bc8 {[%clk 0:01:29]} 26. f4 {[%clk 0:00:50]}  Nxc4 {[%clk 0:01:28]} 27. fxe5 {[%clk 0:00:50]}  fxe5 {[%clk 0:01:20]} 28. Rhf1 {[%clk 0:00:50]}  Bg4 {[%clk 0:01:10]} 29. Rxf8 {[%clk 0:00:35]}  Rxf8 {[%clk 0:01:09]} 30. Re1 {[%clk 0:00:30]}  Nxb2 {[%clk 0:00:58]} 31. Kxb2 {[%clk 0:00:29]}  Rf2+ {[%clk 0:00:58]} 32. Kc3 {[%clk 0:00:29]}  Rxh2 {[%clk 0:00:58]} 33. Rf1 {[%clk 0:00:23]}  Rg2 {[%clk 0:00:20]} 34. Rf7+ {[%clk 0:00:23]}  Kd6 {[%clk 0:00:20]} 35. Rxg7 {[%clk 0:00:15]}  Bf3 {[%clk 0:00:19]} 36. Rh7 {[%clk 0:00:05]}  h2 {[%clk 0:00:18]} 37. Nxb7+ {[%clk 0:00:04]}  Ke6 {[%clk 0:00:18]} 38. Nc5+ {[%clk 0:00:04]}  Kf6 {[%clk 0:00:16]} 39. Rh6+ {[%clk 0:00:04]}  Kg5 {[%clk 0:00:13]} 40. Rh4 {[%clk 0:00:04]}  Re2 {[%clk 0:00:10]} 41. Ne6+ {[%clk 0:00:04]}  Kf5 {[%clk 0:00:10]} 42. Ng7+ {[%clk 0:00:03]}  Kg6 {[%clk 0:00:10]} 43. Ne6 {[%clk 0:00:03]}  h1=Q {[%clk 0:00:09]} 44. Rxh1 {[%clk 0:00:03]}  Bxh1 {[%clk 0:00:09]} 45. Kd3 {[%clk 0:00:03]}  Rb2 {[%clk 0:00:09]} 46. Kc4 {[%clk 0:00:03]}  Bd5+ {[%clk 0:00:08]} 47. Kc5 {[%clk 0:00:03]}  Bxe6 {[%clk 0:00:08]} 48. Kxc6 {[%clk 0:00:04]}  Rxb4 {[%clk 0:00:08]} 49. Kd6 {[%clk 0:00:05]}  Kf6 {[%clk 0:00:09]} 50. g4 {[%clk 0:00:05]}  Rb3 {[%clk 0:00:09]} 51. g5+ {[%clk 0:00:05]}  Kf5 {[%clk 0:00:09]} 52. g6 {[%clk 0:00:06]}  Rxe3 {[%clk 0:00:08]} 53. g7 {[%clk 0:00:05]}  Rd3+ {[%clk 0:00:09]} 54. Ke7 {[%clk 0:00:05]}  Rd7+ {[%clk 0:00:09]} 55. Kf8 {[%clk 0:00:05]}  Rf7+ {[%clk 0:00:09]} 56. Kg8 {[%clk 0:00:04]}  Rf6+ {[%clk 0:00:09]} 57. Kh8 {[%clk 0:00:04]}  Rg6 {[%clk 0:00:09]} 58. Kh7 {[%clk 0:00:05]}  Kf6 {[%clk 0:00:09]} 59. Kh8 {[%clk 0:00:04]}  Rh6# {[%clk 0:00:09]} 0-1


[Site "https://www.chess.com"]

[Event "Titled Tuesday Blitz January 31 Late 2023"]
[White "Leiva, Gianmarco"]
[Black "QuiesPrecatio"]
[WhiteFideId "3804399"]
[WhiteElo "2392"]
[BlackElo "2426"]
[Result "1-0"]
[Round "03"]
[TimeControl "180+2"]
[Date "2023.01.31"]
[WhiteClock "0:00:20"]
[BlackClock "0:00:19"]

1. e4 {[%clk 0:02:58]}  c6 {[%clk 0:02:58]} 2. d4 {[%clk 0:02:54]}  d5 {[%clk 0:02:57]} 3. Nc3 {[%clk 0:02:55]}  dxe4 {[%clk 0:02:57]} 4. Nxe4 {[%clk 0:02:55]}  Bf5 {[%clk 0:02:58]} 5. Ng3 {[%clk 0:02:55]}  Bg6 {[%clk 0:02:58]} 6. h4 {[%clk 0:02:53]}  h6 {[%clk 0:02:58]} 7. Nh3 {[%clk 0:02:53]}  Nd7 {[%clk 0:02:50]} 8. Nf4 {[%clk 0:02:52]}  Bh7 {[%clk 0:02:50]} 9. Bc4 {[%clk 0:02:46]}  e5 {[%clk 0:02:50]} 10. dxe5 {[%clk 0:02:17]}  Qa5+ {[%clk 0:02:49]} 11. c3 {[%clk 0:02:13]}  Qxe5+ {[%clk 0:02:37]} 12. Qe2 {[%clk 0:02:05]}  Qxe2+ {[%clk 0:02:34]} 13. Ngxe2 {[%clk 0:02:02]}  Ngf6 {[%clk 0:02:33]} 14. f3 {[%clk 0:02:00]}  Bc5 {[%clk 0:02:32]} 15. Bd3 {[%clk 0:01:56]}  O-O {[%clk 0:02:25]} 16. Bxh7+ {[%clk 0:01:56]}  Kxh7 {[%clk 0:02:26]} 17. Nd3 {[%clk 0:01:57]}  Bd6 {[%clk 0:02:24]} 18. Bf4 {[%clk 0:01:54]}  Bxf4 {[%clk 0:02:22]} 19. Nexf4 {[%clk 0:01:55]}  Rfe8+ {[%clk 0:02:20]} 20. Kf2 {[%clk 0:01:55]}  Rad8 {[%clk 0:02:18]} 21. Rhe1 {[%clk 0:01:52]}  g5 {[%clk 0:02:03]} 22. hxg5 {[%clk 0:01:49]}  hxg5 {[%clk 0:02:04]} 23. Nh3 {[%clk 0:01:40]}  Kg6 {[%clk 0:02:03]} 24. Rxe8 {[%clk 0:01:39]}  Rxe8 {[%clk 0:02:04]} 25. Ng1 {[%clk 0:01:36]}  Nh5 {[%clk 0:01:55]} 26. Ne2 {[%clk 0:01:37]}  Nb6 {[%clk 0:01:53]} 27. Nc5 {[%clk 0:01:34]}  Re7 {[%clk 0:01:49]} 28. Rd1 {[%clk 0:01:32]}  Nf6 {[%clk 0:01:46]} 29. b3 {[%clk 0:01:26]}  Nbd5 {[%clk 0:01:44]} 30. c4 {[%clk 0:01:25]}  Nb6 {[%clk 0:01:14]} 31. Rd6 {[%clk 0:01:18]}  Kg7 {[%clk 0:01:05]} 32. Ng3 {[%clk 0:01:16]}  Rc7 {[%clk 0:01:01]} 33. Nf5+ {[%clk 0:01:15]}  Kg6 {[%clk 0:00:59]} 34. g4 {[%clk 0:01:07]}  Nd7 {[%clk 0:00:56]} 35. Nxd7 {[%clk 0:00:51]}  Rxd7 {[%clk 0:00:57]} 36. Rxd7 {[%clk 0:00:52]}  Nxd7 {[%clk 0:00:58]} 37. Nd6 {[%clk 0:00:52]}  b6 {[%clk 0:00:55]} 38. Nc8 {[%clk 0:00:52]}  a5 {[%clk 0:00:52]} 39. Ne7+ {[%clk 0:00:52]}  Kf6 {[%clk 0:00:52]} 40. Nxc6 {[%clk 0:00:53]}  Ke6 {[%clk 0:00:48]} 41. Ke3 {[%clk 0:00:45]}  Kd6 {[%clk 0:00:48]} 42. Nd4 {[%clk 0:00:42]}  Nc5 {[%clk 0:00:46]} 43. Ne2 {[%clk 0:00:41]}  Ke5 {[%clk 0:00:45]} 44. Ng3 {[%clk 0:00:41]}  Na6 {[%clk 0:00:38]} 45. Ne4 {[%clk 0:00:40]}  Nb4 {[%clk 0:00:38]} 46. Nxg5 {[%clk 0:00:38]}  f6 {[%clk 0:00:37]} 47. f4+ {[%clk 0:00:37]}  Kd6 {[%clk 0:00:36]} 48. Ne4+ {[%clk 0:00:38]}  Ke6 {[%clk 0:00:37]} 49. Nc3 {[%clk 0:00:35]}  Nc6 {[%clk 0:00:36]} 50. Ke4 {[%clk 0:00:35]}  Ne7 {[%clk 0:00:34]} 51. Nd5 {[%clk 0:00:35]}  Nc8 {[%clk 0:00:32]} 52. f5+ {[%clk 0:00:34]}  Kf7 {[%clk 0:00:32]} 53. Kd4 {[%clk 0:00:33]}  Kg7 {[%clk 0:00:32]} 54. Ke3 {[%clk 0:00:30]}  Kh6 {[%clk 0:00:29]} 55. Kf4 {[%clk 0:00:30]}  Kg7 {[%clk 0:00:28]} 56. Kg3 {[%clk 0:00:31]}  Kf7 {[%clk 0:00:27]} 57. Kh4 {[%clk 0:00:31]}  Kg7 {[%clk 0:00:27]} 58. Kh5 {[%clk 0:00:30]}  Kf7 {[%clk 0:00:25]} 59. Kh6 {[%clk 0:00:29]}  Nd6 {[%clk 0:00:20]} 60. Nxb6 {[%clk 0:00:23]}  Ne4 {[%clk 0:00:21]} 61. Nd5 {[%clk 0:00:20]}  Nf2 {[%clk 0:00:21]} 62. g5 {[%clk 0:00:18]}  fxg5 {[%clk 0:00:20]} 63. Kxg5 {[%clk 0:00:19]}  Ne4+ {[%clk 0:00:20]} 64. Kf4 {[%clk 0:00:19]}  Nd2 {[%clk 0:00:21]} 65. Nc3 {[%clk 0:00:19]}  Kf6 {[%clk 0:00:19]} 66. Ne4+ {[%clk 0:00:19]}  Nxe4 {[%clk 0:00:19]} 67. Kxe4 {[%clk 0:00:20]} 1-0


[Site "https://www.chess.com"]

[Event "Titled Tuesday Blitz January 31 Late 2023"]
[White "Danielyan, Vahe"]
[Black "Koellner, Ruben Gideon"]
[WhiteFideId "13304828"]
[BlackFideId "12993093"]
[WhiteElo "2346"]
[BlackElo "2426"]
[Result "1-0"]
[Round "03"]
[TimeControl "180+2"]
[Date "2023.01.31"]
[WhiteClock "0:00:26"]
[BlackClock "0:00:15"]

1. e4 {[%clk 0:03:00]}  d6 {[%clk 0:02:59]} 2. d4 {[%clk 0:03:00]}  Nf6 {[%clk 0:02:59]} 3. Nc3 {[%clk 0:03:01]}  e5 {[%clk 0:02:59]} 4. Nf3 {[%clk 0:03:00]}  Nbd7 {[%clk 0:02:59]} 5. Rg1 {[%clk 0:03:01]}  c6 {[%clk 0:02:58]} 6. g4 {[%clk 0:03:00]}  h6 {[%clk 0:02:58]} 7. g5 {[%clk 0:02:59]}  hxg5 {[%clk 0:02:58]} 8. Bxg5 {[%clk 0:02:58]}  exd4 {[%clk 0:02:53]} 9. Qxd4 {[%clk 0:02:55]}  Qb6 {[%clk 0:02:53]} 10. O-O-O {[%clk 0:02:53]}  Qxd4 {[%clk 0:02:48]} 11. Rxd4 {[%clk 0:02:52]}  Ne5 {[%clk 0:02:44]} 12. Nxe5 {[%clk 0:02:35]}  dxe5 {[%clk 0:02:45]} 13. Rd2 {[%clk 0:02:35]}  Rxh2 {[%clk 0:02:36]} 14. Bc4 {[%clk 0:02:35]}  Be6 {[%clk 0:02:27]} 15. Bxe6 {[%clk 0:02:28]}  fxe6 {[%clk 0:02:28]} 16. a3 {[%clk 0:02:25]}  Rd8 {[%clk 0:02:23]} 17. Rxd8+ {[%clk 0:02:15]}  Kxd8 {[%clk 0:02:24]} 18. Be3 {[%clk 0:02:14]}  b6 {[%clk 0:02:11]} 19. b4 {[%clk 0:02:13]}  Ke8 {[%clk 0:02:09]} 20. Kb2 {[%clk 0:02:11]}  Kf7 {[%clk 0:02:08]} 21. Kb3 {[%clk 0:02:08]}  Rh4 {[%clk 0:02:08]} 22. Rd1 {[%clk 0:01:55]}  Ke8 {[%clk 0:02:00]} 23. f3 {[%clk 0:01:41]}  Rh3 {[%clk 0:02:00]} 24. Rf1 {[%clk 0:01:41]}  Nh5 {[%clk 0:01:47]} 25. a4 {[%clk 0:01:40]}  Nf4 {[%clk 0:01:45]} 26. a5 {[%clk 0:01:39]}  bxa5 {[%clk 0:01:32]} 27. bxa5 {[%clk 0:01:40]}  a6 {[%clk 0:01:33]} 28. Kc4 {[%clk 0:01:23]}  g5 {[%clk 0:01:30]} 29. Nd1 {[%clk 0:01:02]}  Rh7 {[%clk 0:01:16]} 30. Nf2 {[%clk 0:00:59]}  Rb7 {[%clk 0:01:15]} 31. Bb6 {[%clk 0:00:59]}  Rd7 {[%clk 0:01:14]} 32. Ng4 {[%clk 0:00:58]}  Bg7 {[%clk 0:00:54]} 33. Kc5 {[%clk 0:00:59]}  Rd2 {[%clk 0:00:52]} 34. Kxc6 {[%clk 0:00:59]}  Rxc2+ {[%clk 0:00:52]} 35. Kb7 {[%clk 0:01:00]}  Nd3 {[%clk 0:00:47]} 36. Kxa6 {[%clk 0:00:57]}  Ra2 {[%clk 0:00:46]} 37. Kb7 {[%clk 0:00:53]}  Rb2 {[%clk 0:00:31]} 38. Rd1 {[%clk 0:00:53]}  Nc5+ {[%clk 0:00:30]} 39. Kc6 {[%clk 0:00:48]}  Na4 {[%clk 0:00:30]} 40. Rd8+ {[%clk 0:00:41]}  Ke7 {[%clk 0:00:23]} 41. Rd7+ {[%clk 0:00:39]}  Kf8 {[%clk 0:00:21]} 42. Bc7 {[%clk 0:00:37]}  Rc2+ {[%clk 0:00:19]} 43. Kb5 {[%clk 0:00:35]}  Nc5 {[%clk 0:00:19]} 44. Bd6+ {[%clk 0:00:31]}  Ke8 {[%clk 0:00:18]} 45. Re7+ {[%clk 0:00:30]}  Kd8 {[%clk 0:00:17]} 46. Bxc5 {[%clk 0:00:27]}  Rxc5+ {[%clk 0:00:15]} 47. Kxc5 {[%clk 0:00:27]}  Bf8 {[%clk 0:00:16]} 48. a6 {[%clk 0:00:26]}  Bxe7+ {[%clk 0:00:15]} 49. Kc6 {[%clk 0:00:26]}  Kc8 {[%clk 0:00:15]} 50. a7 {[%clk 0:00:26]} 1-0


[Site "https://www.chess.com"]

[Event "Titled Tuesday Blitz January 31 Late 2023"]
[White "Shubenkova, Veronika"]
[Black "Klose, Eli"]
[WhiteFideId "44124040"]
[BlackFideId "16242955"]
[WhiteElo "1960"]
[BlackElo "1519"]
[Result "1-0"]
[Round "03"]
[TimeControl "180+2"]
[Date "2023.01.31"]
[WhiteClock "0:00:51"]
[BlackClock "0:00:07"]

1. e4 {[%clk 0:03:00]}  e6 {[%clk 0:02:55]} 2. d4 {[%clk 0:03:00]}  d5 {[%clk 0:02:56]} 3. exd5 {[%clk 0:03:00]}  exd5 {[%clk 0:02:52]} 4. Nf3 {[%clk 0:03:01]}  Nf6 {[%clk 0:02:52]} 5. c3 {[%clk 0:03:01]}  c5 {[%clk 0:02:51]} 6. Bd3 {[%clk 0:03:00]}  Nc6 {[%clk 0:02:51]} 7. O-O {[%clk 0:03:00]}  Be7 {[%clk 0:02:51]} 8. h3 {[%clk 0:02:59]}  O-O {[%clk 0:02:51]} 9. Bf4 {[%clk 0:02:58]}  Be6 {[%clk 0:02:50]} 10. Nbd2 {[%clk 0:02:57]}  a5 {[%clk 0:02:43]} 11. dxc5 {[%clk 0:02:56]}  Bxc5 {[%clk 0:02:43]} 12. Nb3 {[%clk 0:02:56]}  Bb6 {[%clk 0:02:42]} 13. Nbd4 {[%clk 0:02:56]}  Re8 {[%clk 0:02:42]} 14. Qa4 {[%clk 0:02:51]}  Bd7 {[%clk 0:02:40]} 15. Qc2 {[%clk 0:02:47]}  Rc8 {[%clk 0:02:35]} 16. Nxc6 {[%clk 0:02:42]}  bxc6 {[%clk 0:02:30]} 17. Rad1 {[%clk 0:02:40]}  h6 {[%clk 0:02:14]} 18. c4 {[%clk 0:02:34]}  Be6 {[%clk 0:02:10]} 19. c5 {[%clk 0:02:34]}  Bc7 {[%clk 0:02:10]} 20. Be3 {[%clk 0:02:30]}  Rb8 {[%clk 0:02:06]} 21. Bd4 {[%clk 0:02:30]}  Nd7 {[%clk 0:01:59]} 22. Rfe1 {[%clk 0:02:26]}  Nf8 {[%clk 0:01:53]} 23. b3 {[%clk 0:02:22]}  Qd7 {[%clk 0:01:44]} 24. Ba1 {[%clk 0:02:21]}  f6 {[%clk 0:01:39]} 25. Nd4 {[%clk 0:02:17]}  Bxh3 {[%clk 0:01:07]} 26. gxh3 {[%clk 0:02:05]}  Qxh3 {[%clk 0:01:08]} 27. f3 {[%clk 0:02:05]}  Be5 {[%clk 0:00:53]} 28. Qg2 {[%clk 0:01:59]}  Qh5 {[%clk 0:00:39]} 29. Nxc6 {[%clk 0:01:52]}  Rbc8 {[%clk 0:00:34]} 30. Nd4 {[%clk 0:01:43]}  Rxc5 {[%clk 0:00:31]} 31. Nf5 {[%clk 0:01:43]}  g6 {[%clk 0:00:29]} 32. Bxe5 {[%clk 0:01:39]}  fxe5 {[%clk 0:00:30]} 33. Ng3 {[%clk 0:01:35]}  Qg5 {[%clk 0:00:28]} 34. Bb1 {[%clk 0:01:32]}  Re7 {[%clk 0:00:17]} 35. Nf1 {[%clk 0:01:32]}  Qf6 {[%clk 0:00:15]} 36. Ne3 {[%clk 0:01:32]}  Rd7 {[%clk 0:00:13]} 37. Ng4 {[%clk 0:01:31]}  Qf4 {[%clk 0:00:13]} 38. Nxe5 {[%clk 0:01:30]}  Re7 {[%clk 0:00:07]} 39. Nxg6 {[%clk 0:01:26]}  Nxg6 {[%clk 0:00:07]} 40. Qxg6+ {[%clk 0:01:20]}  Rg7 {[%clk 0:00:07]} 41. Re8+ {[%clk 0:01:19]}  Qf8 {[%clk 0:00:07]} 42. Rxf8+ {[%clk 0:01:18]}  Kxf8 {[%clk 0:00:07]} 43. Kf2 {[%clk 0:01:15]}  Rxg6 {[%clk 0:00:08]} 44. Bxg6 {[%clk 0:01:16]}  Kg7 {[%clk 0:00:07]} 45. Bd3 {[%clk 0:01:16]}  Kf6 {[%clk 0:00:07]} 46. Ke3 {[%clk 0:01:16]}  Ke5 {[%clk 0:00:07]} 47. f4+ {[%clk 0:01:16]}  Kf6 {[%clk 0:00:08]} 48. Kd4 {[%clk 0:01:16]}  Rc8 {[%clk 0:00:07]} 49. Rg1 {[%clk 0:01:16]}  a4 {[%clk 0:00:06]} 50. Rg6+ {[%clk 0:01:15]}  Kf7 {[%clk 0:00:06]} 51. Rxh6 {[%clk 0:01:15]}  axb3 {[%clk 0:00:06]} 52. axb3 {[%clk 0:01:16]}  Rb8 {[%clk 0:00:07]} 53. Kc3 {[%clk 0:01:14]}  Ke7 {[%clk 0:00:06]} 54. b4 {[%clk 0:01:14]}  Rf8 {[%clk 0:00:06]} 55. f5 {[%clk 0:01:12]}  Rb8 {[%clk 0:00:07]} 56. b5 {[%clk 0:01:12]}  Ra8 {[%clk 0:00:06]} 57. Kd4 {[%clk 0:01:12]}  Ra3 {[%clk 0:00:06]} 58. b6 {[%clk 0:01:11]}  Rb3 {[%clk 0:00:06]} 59. Re6+ {[%clk 0:01:07]}  Kf7 {[%clk 0:00:07]} 60. Rc6 {[%clk 0:01:05]}  Ke7 {[%clk 0:00:07]} 61. Ba6 {[%clk 0:01:02]}  Rb1 {[%clk 0:00:04]} 62. Bc8 {[%clk 0:01:01]}  Kd8 {[%clk 0:00:03]} 63. b7 {[%clk 0:01:00]}  Ke7 {[%clk 0:00:03]} 64. Kxd5 {[%clk 0:00:57]}  Kd8 {[%clk 0:00:04]} 65. f6 {[%clk 0:00:54]}  Rd1+ {[%clk 0:00:04]} 66. Kc5 {[%clk 0:00:53]}  Rc1+ {[%clk 0:00:04]} 67. Kb6 {[%clk 0:00:54]}  Rb1+ {[%clk 0:00:05]} 68. Ka7 {[%clk 0:00:54]}  Ra1+ {[%clk 0:00:05]} 69. Kb8 {[%clk 0:00:54]}  Rf1 {[%clk 0:00:06]} 70. Rd6+ {[%clk 0:00:54]}  Ke8 {[%clk 0:00:06]} 71. Bd7+ {[%clk 0:00:52]}  Kd8 {[%clk 0:00:07]} 72. Bc6# {[%clk 0:00:51]} 1-0


[Site "https://www.chess.com"]

[Event "Titled Tuesday Blitz January 31 Late 2023"]
[White "Blit, Jacques"]
[Black "Saya, Ethan"]
[WhiteFideId "114839"]
[BlackFideId "26095181"]
[WhiteElo "2309"]
[BlackElo "2181"]
[Result "1-0"]
[Round "03"]
[TimeControl "180+2"]
[Date "2023.01.31"]
[WhiteClock "0:00:07"]
[BlackClock "0:00:26"]

1. e4 {[%clk 0:03:00]}  d5 {[%clk 0:02:56]} 2. exd5 {[%clk 0:03:01]}  Qxd5 {[%clk 0:02:42]} 3. Nc3 {[%clk 0:03:00]}  Qa5 {[%clk 0:02:42]} 4. d4 {[%clk 0:03:00]}  Nf6 {[%clk 0:02:42]} 5. Bc4 {[%clk 0:02:58]}  Nc6 {[%clk 0:02:41]} 6. h3 {[%clk 0:02:49]}  Bf5 {[%clk 0:02:37]} 7. Nf3 {[%clk 0:02:48]}  O-O-O {[%clk 0:02:36]} 8. Bd2 {[%clk 0:02:39]}  Nxd4 {[%clk 0:02:16]} 9. Nxd4 {[%clk 0:01:53]}  Rxd4 {[%clk 0:02:17]} 10. Nb5 {[%clk 0:01:40]}  Re4+ {[%clk 0:02:12]} 11. Kf1 {[%clk 0:01:40]}  Qb6 {[%clk 0:02:08]} 12. Be3 {[%clk 0:01:21]}  Rxe3 {[%clk 0:02:01]} 13. fxe3 {[%clk 0:01:22]}  Ne4 {[%clk 0:01:50]} 14. Qe1 {[%clk 0:01:00]}  Qg6 {[%clk 0:01:17]} 15. g4 {[%clk 0:00:55]}  Bxg4 {[%clk 0:01:17]} 16. hxg4 {[%clk 0:00:50]}  Qxg4 {[%clk 0:01:17]} 17. Be2 {[%clk 0:00:25]}  Ng3+ {[%clk 0:01:07]} 18. Kf2 {[%clk 0:00:25]}  Ne4+ {[%clk 0:01:01]} 19. Kf1 {[%clk 0:00:25]}  Ng3+ {[%clk 0:01:01]} 20. Kf2 {[%clk 0:00:24]}  Nxh1+ {[%clk 0:00:49]} 21. Qxh1 {[%clk 0:00:24]}  Qf5+ {[%clk 0:00:49]} 22. Qf3 {[%clk 0:00:22]}  Qxf3+ {[%clk 0:00:43]} 23. Bxf3 {[%clk 0:00:21]}  a6 {[%clk 0:00:41]} 24. Nc3 {[%clk 0:00:21]}  g6 {[%clk 0:00:40]} 25. Rd1 {[%clk 0:00:18]}  Bg7 {[%clk 0:00:39]} 26. Nd5 {[%clk 0:00:17]}  Re8 {[%clk 0:00:38]} 27. c3 {[%clk 0:00:14]}  e6 {[%clk 0:00:38]} 28. Nf4 {[%clk 0:00:13]}  h5 {[%clk 0:00:38]} 29. Nh3 {[%clk 0:00:12]}  Bh6 {[%clk 0:00:37]} 30. Nf4 {[%clk 0:00:11]}  c6 {[%clk 0:00:35]} 31. Nd3 {[%clk 0:00:10]}  Kc7 {[%clk 0:00:34]} 32. Ne5 {[%clk 0:00:10]}  Re7 {[%clk 0:00:34]} 33. Be4 {[%clk 0:00:10]}  Bg7 {[%clk 0:00:34]} 34. Nf3 {[%clk 0:00:10]}  f5 {[%clk 0:00:33]} 35. Bc2 {[%clk 0:00:10]}  Bf6 {[%clk 0:00:34]} 36. Rg1 {[%clk 0:00:10]}  Rg7 {[%clk 0:00:33]} 37. e4 {[%clk 0:00:10]}  Kd6 {[%clk 0:00:28]} 38. e5+ {[%clk 0:00:09]}  Bxe5 {[%clk 0:00:28]} 39. Rd1+ {[%clk 0:00:09]}  Ke7 {[%clk 0:00:26]} 40. Nxe5 {[%clk 0:00:10]}  Kf6 {[%clk 0:00:26]} 41. Nd7+ {[%clk 0:00:09]}  Kg5 {[%clk 0:00:26]} 42. Kf3 {[%clk 0:00:09]}  Kh6 {[%clk 0:00:25]} 43. Ne5 {[%clk 0:00:08]}  g5 {[%clk 0:00:25]} 44. Rd8 {[%clk 0:00:08]}  Re7 {[%clk 0:00:22]} 45. Rh8+ {[%clk 0:00:07]}  Kg7 {[%clk 0:00:22]} 46. Rxh5 {[%clk 0:00:07]}  Kf6 {[%clk 0:00:21]} 47. Nd3 {[%clk 0:00:06]}  g4+ {[%clk 0:00:20]} 48. Kf4 {[%clk 0:00:04]}  e5+ {[%clk 0:00:21]} 49. Nxe5 {[%clk 0:00:04]}  Rxe5 {[%clk 0:00:22]} 50. Rxf5+ {[%clk 0:00:03]}  Rxf5+ {[%clk 0:00:21]} 51. Bxf5 {[%clk 0:00:04]}  g3 {[%clk 0:00:22]} 52. Bh3 {[%clk 0:00:05]}  a5 {[%clk 0:00:18]} 53. Bg2 {[%clk 0:00:06]}  a4 {[%clk 0:00:17]} 54. Kxg3 {[%clk 0:00:06]}  Ke5 {[%clk 0:00:18]} 55. a3 {[%clk 0:00:05]}  Kd6 {[%clk 0:00:17]} 56. Kf3 {[%clk 0:00:05]}  b5 {[%clk 0:00:17]} 57. Ke3 {[%clk 0:00:05]}  Kc5 {[%clk 0:00:17]} 58. Kd3 {[%clk 0:00:05]}  Kd6 {[%clk 0:00:17]} 59. Kd4 {[%clk 0:00:06]}  c5+ {[%clk 0:00:18]} 60. Kd3 {[%clk 0:00:06]}  Ke5 {[%clk 0:00:17]} 61. Bc6 {[%clk 0:00:06]}  b4 {[%clk 0:00:17]} 62. cxb4 {[%clk 0:00:06]}  cxb4 {[%clk 0:00:18]} 63. axb4 {[%clk 0:00:06]}  Kd6 {[%clk 0:00:17]} 64. Bxa4 {[%clk 0:00:06]}  Kc7 {[%clk 0:00:18]} 65. Kc4 {[%clk 0:00:07]}  Kb6 {[%clk 0:00:19]} 66. Bc2 {[%clk 0:00:08]}  Kc7 {[%clk 0:00:20]} 67. Be4 {[%clk 0:00:08]}  Kb6 {[%clk 0:00:20]} 68. b5 {[%clk 0:00:09]}  Kc7 {[%clk 0:00:21]} 69. Kc5 {[%clk 0:00:10]}  Kb8 {[%clk 0:00:22]} 70. b6 {[%clk 0:00:10]}  Kc8 {[%clk 0:00:22]} 71. Kc6 {[%clk 0:00:10]}  Kb8 {[%clk 0:00:23]} 72. b7 {[%clk 0:00:09]}  Ka7 {[%clk 0:00:24]} 73. Kc7 {[%clk 0:00:10]}  Ka6 {[%clk 0:00:24]} 74. b8=Q {[%clk 0:00:10]}  Ka5 {[%clk 0:00:25]} 75. Bd3 {[%clk 0:00:07]}  Ka4 {[%clk 0:00:26]} 76. Kc6 {[%clk 0:00:06]}  Ka5 {[%clk 0:00:26]} 77. Qb5# {[%clk 0:00:07]} 1-0


[Site "https://www.chess.com"]

[Event "Titled Tuesday Blitz January 31 Late 2023"]
[White "Bas Mas, Jose Joaquin"]
[Black "Fiorito, Joaquin"]
[WhiteFideId "22219064"]
[BlackFideId "180173"]
[WhiteElo "2197"]
[BlackElo "2405"]
[Result "1-0"]
[Round "03"]
[TimeControl "180+2"]
[Date "2023.01.31"]
[WhiteClock "0:00:07"]
[BlackClock "0:01:01"]

1. e4 {[%clk 0:03:00]}  c6 {[%clk 0:03:00]} 2. d4 {[%clk 0:03:00]}  d5 {[%clk 0:03:00]} 3. f3 {[%clk 0:03:01]}  e6 {[%clk 0:03:00]} 4. Nc3 {[%clk 0:03:00]}  Bb4 {[%clk 0:03:00]} 5. a3 {[%clk 0:03:00]}  Bxc3+ {[%clk 0:02:59]} 6. bxc3 {[%clk 0:03:01]}  dxe4 {[%clk 0:03:00]} 7. Nh3 {[%clk 0:03:01]}  exf3 {[%clk 0:02:55]} 8. Qxf3 {[%clk 0:03:00]}  Nf6 {[%clk 0:02:56]} 9. Bd3 {[%clk 0:02:58]}  Nbd7 {[%clk 0:02:57]} 10. O-O {[%clk 0:02:58]}  h6 {[%clk 0:02:58]} 11. Bd2 {[%clk 0:02:48]}  Qc7 {[%clk 0:02:57]} 12. Rae1 {[%clk 0:02:45]}  g5 {[%clk 0:02:26]} 13. Nf2 {[%clk 0:02:25]}  Rf8 {[%clk 0:02:18]} 14. c4 {[%clk 0:02:12]}  b6 {[%clk 0:02:16]} 15. Bb4 {[%clk 0:01:53]}  c5 {[%clk 0:01:58]} 16. Qxa8 {[%clk 0:01:46]}  cxb4 {[%clk 0:01:58]} 17. axb4 {[%clk 0:01:33]}  Ke7 {[%clk 0:01:58]} 18. Qf3 {[%clk 0:01:21]}  Bb7 {[%clk 0:01:59]} 19. Qg3 {[%clk 0:01:19]}  Qc8 {[%clk 0:01:52]} 20. d5 {[%clk 0:01:14]}  a5 {[%clk 0:01:49]} 21. Ne4 {[%clk 0:00:56]}  Nxe4 {[%clk 0:01:46]} 22. Rxe4 {[%clk 0:00:56]}  axb4 {[%clk 0:01:41]} 23. h4 {[%clk 0:00:39]}  Nc5 {[%clk 0:01:38]} 24. Ree1 {[%clk 0:00:34]}  Rg8 {[%clk 0:01:37]} 25. Qf3 {[%clk 0:00:26]}  f5 {[%clk 0:01:30]} 26. Qxf5 {[%clk 0:00:21]}  gxh4 {[%clk 0:01:22]} 27. Qh7+ {[%clk 0:00:20]}  Kd6 {[%clk 0:01:22]} 28. Rf6 {[%clk 0:00:17]}  h3 {[%clk 0:01:12]} 29. Qxh6 {[%clk 0:00:07]}  Rxg2+ {[%clk 0:01:10]} 30. Kh1 {[%clk 0:00:07]}  Nxd3 {[%clk 0:01:08]} 31. cxd3 {[%clk 0:00:07]}  Kc5 {[%clk 0:01:02]} 32. Qe3+ {[%clk 0:00:06]}  Kd6 {[%clk 0:01:02]} 33. Rxe6+ {[%clk 0:00:07]}  Kc7 {[%clk 0:01:03]} 34. Qe5+ {[%clk 0:00:07]}  Kd7 {[%clk 0:01:01]} 35. Qd6# {[%clk 0:00:07]} 1-0


[Site "https://www.chess.com"]